bitfinex/quotes_ETHUSD_20240927
["timestamp","ask_amount","ask_price","bid_price","bid_amount"]
[1727411181331,4.56605,2652.0,2651.5,2.47417432]
[1727411181527,4.56605,2652.0,2651.5,1.69227927]
[1727411181733,0.88393975,2651.9,2651.5,2.47417432]
[1727411182127,0.833673,2651.9,2651.5,2.47417432]
[1727411182717,0.833673,2651.9,2651.5,1.69227927]
[1727411183423,0.050253,2651.8,2651.5,1.69227927]
[1727411183638,0.050253,2651.8,2651.5,2.47417432]
[1727411183830,0.050253,2651.8,2651.5,1.69227927]
[1727411184051,0.050253,2651.8,2651.5,2.47417432]
[1727411184530,0.050253,2651.8,2651.7,1.69227927]
[1727411184732,0.7953,2652.0,2651.7,1.69227927]
[1727411185223,0.05002555,2651.9,2651.7,1.69227927]
[1727411189467,0.05002555,2651.9,2651.5,3.77143]
[1727411189468,0.51162111,2651.9,2651.5,1.69227927]
[1727411189770,0.05002555,2651.9,2651.5,1.69227927]
[1727411193191,3.82092555,2651.9,2651.5,1.69227927]
[1727411193890,3.82092555,2651.9,2651.0,8.12189505]
[1727411193891,4.53213,2651.5,2651.0,8.12189505]
[1727411194098,4.53213,2651.5,2650.9,2.47417432]
[1727411194270,3.77203,2651.1,2650.9,0.78189505]
[1727411194471,1.137803,2651.0,2650.8,0.0386463]
[1727411194678,0.80851902,2651.0,2650.8,0.0386463]
[1727411195458,0.80851902,2651.0,2650.8,1.73092557]
[1727411195658,0.04791902,2651.0,2650.8,1.73092557]
[1727411195977,0.7606,2651.2,2650.8,1.73092557]
[1727411196150,0.0473395,2650.9,2650.8,1.73092557]
[1727411196556,0.7606,2651.2,2650.8,1.73092557]
[1727411197896,0.04736701,2651.1,2650.8,1.73092557]
[1727411202900,0.04736701,2651.1,2650.8,5.50334557]
[1727411203098,0.04736701,2651.1,2650.8,3.8110663]
[1727411203262,0.50534071,2651.1,2650.8,0.0386463]
[1727411204102,4.27737071,2651.1,2650.8,0.0386463]
[1727411204478,0.50534071,2651.1,2650.8,0.0386463]
[1727411204671,0.04736701,2651.1,2650.8,0.0386463]
[1727411206007,0.04736701,2651.1,2650.8,1.73092557]
[1727411210568,0.04736701,2651.1,2650.8,0.0386463]
[1727411213691,0.04736701,2651.1,2650.8,1.73092557]
[1727411217175,0.04736701,2651.1,2650.8,2.55052557]
[1727411217482,0.04736701,2651.1,2650.8,1.73092557]
[1727411218086,0.04736701,2651.1,2650.8,0.0386463]
[1727411218379,0.12359556,2651.1,2650.8,0.0386463]
[1727411219893,0.04736701,2651.1,2650.8,0.0386463]
[1727411230317,0.12359556,2651.1,2650.8,0.0386463]
[1727411238022,0.58920212,2651.1,2650.8,0.0386463]
[1727411241236,4.36123212,2651.1,2650.8,0.0386463]
[1727411241662,0.8193,2651.0,2650.8,0.0386463]
[1727411241866,0.07622855,2650.9,2650.8,0.0386463]
[1727411242043,0.12188059,2650.9,2650.8,0.0386463]
[1727411242242,0.63976231,2650.9,2650.8,0.0386463]
[1727411242443,0.12188059,2650.9,2650.8,0.0386463]
[1727411243471,0.04565204,2650.9,2650.8,0.0386463]
[1727411243676,0.12188059,2650.9,2650.8,0.0386463]
[1727411244734,0.04565204,2650.9,2650.8,0.0386463]
[1727411245181,0.12188059,2650.9,2650.8,0.0386463]
[1727411245477,1.0170043,2650.9,2650.8,0.0386463]
[1727411245843,4.7893043,2650.9,2650.8,0.0386463]
[1727411246039,5.6086043,2650.9,2650.8,0.0386463]
[1727411246842,8.6086043,2650.9,2650.8,0.0386463]
[1727411247043,8.53237575,2650.9,2650.8,0.0386463]
[1727411270443,0.04565204,2650.9,2650.8,0.0386463]
[1727411270622,3.81795204,2650.9,2650.8,0.0386463]
[1727411281840,0.04565204,2650.9,2650.8,0.0386463]
[1727411282366,0.04565204,2650.9,2650.8,0.8300463]
[1727411290392,3.81795204,2650.9,2650.8,0.8300463]
[1727411290832,0.04565204,2650.9,2650.8,0.8300463]
[1727411292011,0.04565204,2650.9,2650.8,0.0386463]
[1727411293260,3.81795204,2650.9,2650.8,0.0386463]
[1727411293465,0.04565204,2650.9,2650.8,0.0386463]
[1727411296367,3.81795204,2650.9,2650.8,0.0386463]
[1727411296592,0.04565204,2650.9,2650.8,0.0386463]
[1727411301905,3.81795204,2650.9,2650.8,0.0386463]
[1727411302193,0.04565204,2650.9,2650.8,0.0386463]
[1727411309480,3.81795204,2650.9,2650.8,0.0386463]
[1727411310298,4.6669821,2650.9,2650.8,0.0386463]
[1727411310511,4.74321065,2650.9,2650.8,0.0386463]
[1727411314323,0.04565204,2650.9,2650.8,0.0386463]
[1727411314527,0.04565204,2650.9,2650.8,1.73092557]
[1727411314700,0.04565204,2650.9,2650.8,0.0386463]
[1727411315742,3.0,2651.1,2650.8,0.0386463]
[1727411315743,6.77203,2651.1,2650.8,0.0386463]
[1727411315913,0.04231773,2650.9,2650.8,0.0386463]
[1727411316718,3.84812855,2651.2,2650.8,0.0386463]
[1727411316950,0.0423261,2650.9,2650.8,0.0386463]
[1727411317109,3.84812855,2651.2,2650.8,0.0386463]
[1727411317310,0.0423261,2650.9,2650.8,0.0386463]
[1727411317536,3.84812855,2651.2,2650.8,0.0386463]
[1727411317756,0.0423261,2650.9,2650.8,0.0386463]
[1727411318046,3.84812855,2651.2,2650.8,0.0386463]
[1727411318348,4.99251641,2651.2,2650.8,0.0386463]
[1727411318510,0.04235362,2651.1,2650.8,0.0386463]
[1727411318905,0.04235362,2651.1,2650.9,0.82]
[1727411321412,3.0,2651.2,2650.9,0.82]
[1727411322163,0.04262662,2651.1,2650.9,0.82]
[1727411322468,0.04262662,2651.1,2651.0,2.51227927]
[1727411322792,3.77132,2651.6,2651.0,2.96284559]
[1727411322964,3.77132,2651.6,2651.1,0.78566525]
[1727411323170,3.77154,2651.5,2651.0,2.96284559]
[1727411323562,3.84754855,2651.6,2651.0,3.74851084]
[1727411323875,3.84754855,2651.6,2651.1,0.37485108]
[1727411324076,3.84754855,2651.6,2651.3,0.82]
[1727411324077,3.77132,2651.6,2651.3,0.82]
[1727411325700,0.04279304,2651.5,2651.3,0.82]
[1727411328867,3.7712,2651.7,2651.3,0.82]
[1727411329063,0.04311968,2651.4,2651.3,0.82]
[1727411329295,3.7712,2651.7,2651.3,0.82]
[1727411329470,0.04311968,2651.4,2651.3,0.82]
[1727411329677,3.7712,2651.7,2651.3,0.82]
[1727411329907,0.04311968,2651.4,2651.3,0.82]
[1727411330116,3.7712,2651.7,2651.3,0.82]
[1727411330316,0.04311968,2651.4,2651.3,0.82]
[1727411330517,3.7712,2651.7,2651.3,0.82]
[1727411330997,0.04314719,2651.6,2651.3,0.82]
[1727411335080,0.04314719,2651.6,2651.4,1.69227927]
[1727411335412,3.84711855,2651.9,2651.4,2.48992112]
[1727411335708,0.04313343,2651.5,2651.4,1.69227927]
[1727411335888,3.84711855,2651.9,2651.4,1.69227927]
[1727411336075,0.04313343,2651.5,2651.4,1.69227927]
[1727411336271,3.84711855,2651.9,2651.4,1.69227927]
[1727411336478,0.04313343,2651.5,2651.4,1.69227927]
[1727411337078,7.61810855,2651.9,2651.4,1.69227927]
[1727411337278,0.04313343,2651.5,2651.4,1.69227927]
[1727411337474,3.84711855,2651.9,2651.4,1.69227927]
[1727411337677,0.04347997,2651.5,2651.4,1.69227927]
[1727411337895,3.84711855,2651.9,2651.4,1.69227927]
[1727411338097,0.04347997,2651.5,2651.4,6.22696927]
[1727411338489,3.7709,2651.9,2651.4,6.22696927]
[1727411338689,0.04347997,2651.5,2651.4,6.22696927]
[1727411338886,4.59476,2652.1,2651.5,4.53451]
[1727411339115,3.77076,2652.0,2651.6,1.69227927]
[1727411339982,0.0436711,2651.9,2651.6,1.69227927]
[1727411343136,0.0436711,2651.9,2651.5,0.7631]
[1727411343599,3.8145711,2651.9,2651.5,0.7631]
[1727411343799,4.65550421,2651.9,2651.5,0.7631]
[1727411349460,3.77125,2651.7,2651.5,0.7631]
[1727411349603,3.77125,2651.7,2651.2,0.7631]
[1727411349803,0.07622855,2651.6,2651.2,0.7631]
[1727411350438,0.07622855,2651.6,2651.2,4.53495]
[1727411350644,0.85322855,2651.8,2651.2,4.53495]
[1727411350839,0.53888631,2651.7,2651.2,6.22722927]
[1727411351342,0.0437088,2651.6,2651.2,6.22722927]
[1727411353164,0.0437088,2651.6,2651.2,2.45537927]
[1727411353331,0.0437088,2651.6,2651.2,0.7631]
[1727411353332,0.11993735,2651.6,2651.2,0.7631]
[1727411353535,3.77173,2651.3,2650.9,0.7666]
[1727411353751,3.84811855,2651.2,2650.9,0.7666]
[1727411353923,0.11966691,2651.2,2650.9,0.7666]
[1727411354620,0.04343836,2651.2,2650.9,0.7666]
[1727411354822,4.22513155,2651.3,2650.9,0.7666]
[1727411355121,0.04336891,2651.1,2650.9,0.7666]
[1727411355346,4.22513155,2651.3,2650.9,0.7666]
[1727411355347,3.77189,2651.2,2650.9,0.7666]
[1727411355550,0.04326852,2651.0,2650.9,0.7666]
[1727411355865,0.79970216,2651.2,2650.9,0.7666]
[1727411356362,0.0430966,2651.1,2650.9,0.7666]
[1727411356761,0.11932515,2651.1,2650.8,0.0386463]
[1727411359331,0.07622855,2651.0,2650.8,0.0386463]
[1727411359674,0.04302575,2650.9,2650.8,0.0386463]
[1727411360169,4.60861855,2651.2,2650.8,0.0386463]
[1727411360868,0.04305327,2651.1,2650.8,0.0386463]
[1727411361443,3.84839855,2651.0,2650.8,0.0386463]
[1727411361645,0.04261768,2650.9,2650.8,0.0386463]
[1727411361972,0.04261768,2650.9,2650.8,1.73092557]
[1727411362659,0.07622855,2651.2,2650.8,1.73092557]
[1727411362873,0.04259171,2650.9,2650.8,1.73092557]
[1727411363030,0.07622855,2651.2,2650.8,1.73092557]
[1727411363235,0.0426248,2651.1,2650.8,1.73092557]
[1727411365168,3.84800855,2651.3,2650.8,1.73092557]
[1727411365335,0.04261105,2651.0,2650.8,1.73092557]
[1727411365535,3.84800855,2651.3,2650.8,1.73092557]
[1727411365770,0.04259729,2650.9,2650.8,1.73092557]
[1727411366135,3.84800855,2651.3,2650.8,1.73092557]
[1727411366369,0.04259729,2650.9,2650.8,1.73092557]
[1727411366567,3.7719,2651.2,2650.8,1.73092557]
[1727411366785,0.04259729,2650.9,2650.8,1.73092557]
[1727411367085,0.04259729,2650.9,2650.8,2.49752557]
[1727411367464,4.53211,2651.4,2650.8,2.49752557]
[1727411367679,0.04269012,2650.9,2650.8,2.49752557]
[1727411367881,4.53211,2651.4,2650.8,3.50177613]
[1727411368069,0.04269012,2650.9,2650.8,2.49752557]
[1727411368394,4.53211,2651.4,2650.8,2.49752557]
[1727411368564,0.04269012,2650.9,2650.8,2.49752557]
[1727411368891,0.04268454,2650.9,2650.8,2.49752557]
[1727411369392,4.53222,2651.4,2650.8,2.49752557]
[1727411369687,3.77173,2651.3,2650.8,2.49752557]
[1727411369995,3.89069812,2651.3,2650.8,2.49752557]
[1727411370667,3.89069812,2651.3,2650.8,0.8052463]
[1727411370876,3.81446957,2651.3,2650.8,0.8052463]
[1727411371166,0.07622855,2651.2,2650.8,0.8052463]
[1727411371371,0.04291948,2651.1,2650.8,0.8052463]
[1727411371683,3.81501948,2651.1,2650.8,0.8052463]
[1727411372973,4.58133128,2651.1,2650.8,0.0386463]
[1727411374391,3.81501948,2651.1,2650.8,0.0386463]
[1727411374609,0.04291948,2651.1,2650.8,0.0386463]
[1727411374810,0.04291948,2651.1,2650.9,0.7784]
[1727411378211,8.30385,2651.4,2650.9,0.7784]
[1727411378717,3.77188,2651.2,2650.9,0.7784]
[1727411379219,4.61418116,2651.2,2650.8,0.0386463]
[1727411379918,3.77202,2651.1,2650.8,0.0386463]
[1727411380414,4.61418116,2651.2,2650.8,0.0386463]
[1727411380582,3.77207,2651.1,2650.8,0.0386463]
[1727411380983,0.04272177,2651.0,2650.8,0.0386463]
[1727411382442,4.69040971,2651.2,2650.8,0.0386463]
[1727411382604,0.04269787,2651.1,2650.8,0.0386463]
[1727411384806,3.81473787,2651.1,2650.8,0.0386463]
[1727411385027,0.04269787,2651.1,2650.8,0.0386463]
[1727411393823,3.81471787,2651.1,2650.8,0.0386463]
[1727411396657,0.04269787,2651.1,2650.8,0.0386463]
[1727411396876,3.84806855,2651.3,2650.8,0.0386463]
[1727411397076,0.04268758,2651.2,2650.8,0.0386463]
[1727411397259,3.77188,2651.2,2650.8,0.0386463]
[1727411397454,0.04267382,2651.1,2650.8,0.0386463]
[1727411398846,3.81475382,2651.1,2650.8,0.0386463]
[1727411399448,3.81475382,2651.1,2650.8,0.82196187]
[1727411399676,3.81475382,2651.1,2650.8,0.0386463]
[1727411399880,5.05955444,2651.1,2650.8,0.0386463]
[1727411400110,0.07622855,2651.0,2650.8,0.0386463]
[1727411400543,4.58665382,2651.1,2650.8,0.0386463]
[1727411400973,0.07622855,2651.0,2650.8,0.0386463]
[1727411402081,3.84849855,2651.0,2650.8,0.0386463]
[1727411402267,0.91972979,2651.0,2650.8,0.0386463]
[1727411402476,3.7723,2650.9,2650.8,0.0386463]
[1727411403457,0.84350124,2651.0,2650.8,0.0386463]
[1727411403663,4.66288237,2651.1,2650.8,0.0386463]
[1727411403845,0.04267382,2651.1,2650.8,0.0386463]
[1727411405488,0.04267382,2651.1,2650.8,0.82196187]
[1727411407586,3.81470382,2651.1,2650.8,0.0386463]
[1727411409257,0.04267382,2651.1,2650.8,0.0386463]
[1727411409457,0.04267382,2651.1,2650.8,1.24296675]
[1727411409669,0.04267382,2651.1,2650.9,0.8088]
[1727411411084,0.04267382,2651.1,2650.9,2.50107927]
[1727411413112,0.04267382,2651.1,2650.9,3.28439484]
[1727411413923,0.04267382,2651.1,2650.9,1.59211557]
[1727411414227,0.04267382,2651.1,2650.8,0.82196187]
[1727411414442,0.04267382,2651.1,2650.9,0.78331557]
[1727411415212,0.04267382,2651.1,2650.8,0.82196187]
[1727411415213,3.77218,2651.0,2650.8,0.82196187]
[1727411415647,3.77218,2651.0,2650.8,0.0386463]
[1727411417722,0.04115151,2650.9,2650.8,0.0386463]
[1727411418357,4.64824121,2650.9,2650.8,0.0386463]
[1727411418655,0.79971266,2650.9,2650.8,0.0386463]
[1727411418838,0.04115151,2650.9,2650.8,0.0386463]
[1727411419036,0.04115151,2650.9,2650.8,4.5896863]
[1727411419297,3.77142,2651.6,2650.8,5.06149974]
[1727411419565,3.77142,2651.6,2651.1,2.47087927]
[1727411419864,3.77142,2651.6,2651.1,1.22179371]
[1727411420155,3.77187,2651.2,2650.9,0.7860845]
[1727411420321,3.77217,2651.0,2650.8,0.8247308]
[1727411420520,3.77217,2651.0,2650.8,0.0386463]
[1727411421458,0.03840561,2650.9,2650.8,0.0386463]
[1727411425275,3.77203,2651.1,2650.8,0.0386463]
[1727411425439,0.03851168,2651.0,2650.8,0.0386463]
[1727411425770,3.81079168,2651.0,2650.8,0.0386463]
[1727411425955,1.64551255,2651.0,2650.8,0.0386463]
[1727411426159,3.7723,2650.9,2650.8,0.0386463]
[1727411426360,4.5833,2650.9,2650.8,0.0386463]
[1727411426668,4.62182327,2650.9,2650.8,0.0386463]
[1727411431536,3.81082327,2650.9,2650.8,0.0386463]
[1727411432770,0.03852327,2650.9,2650.8,0.0386463]
[1727411433367,3.81082327,2650.9,2650.8,0.0386463]
[1727411433564,5.86856154,2650.9,2650.8,0.0386463]
[1727411433768,5.94479009,2650.9,2650.8,0.0386463]
[1727411437682,0.03852327,2650.9,2650.8,0.0386463]
[1727411438882,0.03852327,2650.9,2650.8,1.73092557]
[1727411439081,3.77188,2651.2,2650.8,0.8498463]
[1727411439259,0.84491785,2651.2,2650.8,0.8498463]
[1727411439593,0.8293,2651.0,2650.8,0.0386463]
[1727411439899,3.84852855,2650.9,2650.8,0.0386463]
[1727411440390,0.07622855,2650.9,2650.8,0.0386463]
[1727411440558,1.2212054,2650.9,2650.8,0.0386463]
[1727411440758,1.14497685,2650.9,2650.8,0.0386463]
[1727411441359,1.2212054,2650.9,2650.8,0.0386463]
[1727411442103,4.9935054,2650.9,2650.8,0.0386463]
[1727411442261,5.03044953,2650.9,2650.8,0.0386463]
[1727411444696,1.25814953,2650.9,2650.8,0.0386463]
[1727411444873,1.18192098,2650.9,2650.8,0.0386463]
[1727411447073,4.95422098,2650.9,2650.8,0.0386463]
[1727411448860,0.03694413,2650.9,2650.8,0.0386463]
[1727411449063,6.84830855,2651.1,2650.8,0.0386463]
[1727411449360,0.03566441,2651.0,2650.8,0.0386463]
[1727411449560,3.80794441,2651.0,2650.8,0.0386463]
[1727411449764,4.57929171,2651.0,2650.8,0.0386463]
[1727411452294,3.7723,2650.9,2650.8,0.0386463]
[1727411452494,3.80795065,2650.9,2650.8,0.0386463]
[1727411453683,0.03565065,2650.9,2650.8,0.0386463]
[1727411454218,3.80795065,2650.9,2650.8,0.0386463]
[1727411454393,4.9507313,2650.9,2650.8,0.0386463]
[1727411454592,1.1784313,2650.9,2650.8,0.0386463]
[1727411454804,0.03565065,2650.9,2650.8,0.0386463]
[1727411456318,3.80795065,2650.9,2650.8,0.0386463]
[1727411458216,0.03565065,2650.9,2650.8,0.0386463]
[1727411458615,7.54448,2651.0,2650.8,0.0386463]
[1727411458823,0.03565065,2650.9,2650.8,0.0386463]
[1727411459616,4.86596372,2650.9,2650.8,0.0386463]
[1727411460124,5.77149227,2650.9,2650.8,0.0386463]
[1727411460698,5.69526372,2650.9,2650.8,0.0386463]
[1727411460890,4.86596372,2650.9,2650.8,0.0386463]
[1727411461129,0.03565065,2650.9,2650.8,0.0386463]
[1727411461487,0.03565065,2650.9,2650.8,0.8212463]
[1727411462210,3.80795065,2650.9,2650.8,0.0386463]
[1727411467129,3.8841792,2650.9,2650.8,0.0386463]
[1727411467526,3.80795065,2650.9,2650.8,0.0386463]
[1727411467904,3.8841792,2650.9,2650.8,0.0386463]
[1727411468117,3.80795065,2650.9,2650.8,0.0386463]
[1727411468607,4.87358457,2650.9,2650.8,0.0386463]
[1727411469517,4.94981312,2650.9,2650.8,0.0386463]
[1727411472469,4.87358457,2650.9,2650.8,0.0386463]
[1727411472654,0.03565065,2650.9,2650.8,0.0386463]
[1727411473030,3.80795065,2650.9,2650.8,0.0386463]
[1727411473553,0.03565065,2650.9,2650.8,0.0386463]
[1727411476385,3.80795065,2650.9,2650.8,0.0386463]
[1727411476739,0.03565065,2650.9,2650.8,0.0386463]
[1727411478849,3.80795065,2650.9,2650.8,0.0386463]
[1727411486183,8.64614771,2650.9,2650.8,0.0386463]
[1727411486354,7.58815065,2650.9,2650.8,0.0386463]
[1727411486687,7.6643792,2650.9,2650.8,0.0386463]
[1727411491567,3.77344,2650.1,2650.0,0.0386463]
[1727411491766,10.06182082,2650.1,2650.0,0.0386463]
[1727411491965,10.02071998,2650.1,2650.0,0.0386463]
[1727411492603,8.32844071,2650.1,2650.0,0.0386463]
[1727411492788,10.02071998,2650.1,2650.0,0.0386463]
[1727411523936,10.4106841,2650.1,2650.0,0.0386463]
[1727411524091,8.71840483,2650.1,2650.0,0.0386463]
[1727411524503,10.4106841,2650.1,2650.0,0.0386463]
[1727411524702,10.02071998,2650.1,2650.0,0.0386463]
[1727411525312,8.32844071,2650.1,2650.0,0.0386463]
[1727411525510,10.02071998,2650.1,2650.0,0.0386463]
[1727411529508,9.25551998,2650.1,2650.0,0.0386463]
[1727411530754,6.80856771,2650.1,2650.0,0.8158463]
[1727411530941,6.88479626,2650.1,2650.0,0.8158463]
[1727411531138,6.80856771,2650.1,2650.0,0.8158463]
[1727411534176,0.03512771,2650.1,2650.0,0.8158463]
[1727411535736,0.002165,2650.3,2650.0,0.28945886]
[1727411535969,0.002165,2650.3,2650.1,0.8126]
[1727411536588,0.002165,2650.3,2650.1,6.27829927]
[1727411536881,0.002165,2650.3,2650.2,0.8126]
[1727411538052,0.03777751,2650.3,2650.2,0.8126]
[1727411538260,0.03777751,2650.3,2650.2,1.46938681]
[1727411538675,0.03777751,2650.3,2650.2,0.8126]
[1727411548419,0.03777751,2650.3,2650.0,0.8524463]
[1727411549501,0.03777751,2650.3,2650.1,3.77342]
[1727411549727,0.03777751,2650.3,2650.2,0.8138]
[1727411550995,0.03777751,2650.3,2650.2,3.7733]
[1727411551192,0.03777751,2650.3,2650.2,5.13752256]
[1727411555653,0.03777751,2650.3,2650.2,1.36422256]
[1727411555806,0.03777751,2650.3,2650.2,0.8138]
[1727411564222,0.03777751,2650.3,2650.2,4.5871]
[1727411565717,0.03777751,2650.3,2650.2,0.8138]
[1727411576877,0.03777751,2650.3,2650.2,4.5871]
[1727411578159,0.03777751,2650.3,2650.2,6.27937927]
[1727411578389,0.03777751,2650.3,2650.2,7.3746]
[1727411578604,0.002165,2650.3,2650.2,7.4500533]
[1727411578773,0.002165,2650.3,2650.2,9.02063889]
[1727411579090,0.002165,2650.3,2650.2,8.94518559]
[1727411579864,0.002165,2650.3,2650.2,7.3746]
[1727411580064,0.002165,2650.3,2650.2,9.41844351]
[1727411580304,0.002165,2650.3,2650.2,9.34300312]
[1727411580615,0.002165,2650.3,2650.2,10.3746]
[1727411580768,3.77078,2652.0,2651.2,0.8279]
[1727411580966,0.7641,2652.1,2651.7,5.46343927]
[1727411581173,0.7641,2652.3,2651.9,2.52017927]
[1727411581372,3.77027,2652.4,2652.2,1.69227927]
[1727411581603,4.53426,2652.5,2652.0,1.69227927]
[1727411581810,3.77042,2652.3,2651.7,0.8279]
[1727411582012,3.77042,2652.3,2651.7,4.59904]
[1727411582171,3.77042,2652.3,2651.7,0.8279]
[1727411583376,4.72245915,2652.3,2651.7,0.8279]
[1727411583901,4.6462306,2652.3,2651.7,0.8279]
[1727411584100,0.453426,2652.4,2651.8,3.771]
[1727411584273,4.53426,2652.5,2651.9,3.77087]
[1727411584472,0.03346083,2652.3,2651.9,3.77087]
[1727411584823,4.53426,2652.5,2651.9,3.77087]
[1727411584824,0.03567728,2652.2,2651.9,3.77087]
[1727411584974,4.53426,2652.5,2651.9,3.77087]
[1727411585177,0.49675558,2652.4,2651.9,3.77087]
[1727411585513,0.49675558,2652.4,2651.8,3.771]
[1727411585717,0.03570673,2652.4,2651.8,3.771]
[1727411586081,0.03570673,2652.4,2651.9,3.84627851]
[1727411586594,0.03570673,2652.4,2651.9,3.77087]
[1727411586799,0.03570673,2652.4,2651.8,3.771]
[1727411588390,0.03570673,2652.4,2651.9,3.77087]
[1727411589980,0.03570673,2652.4,2652.1,0.8279]
[1727411590173,0.03570673,2652.4,2652.1,4.59848]
[1727411590417,7.53362,2652.9,2652.3,3.77031]
[1727411590615,0.7641,2652.9,2652.4,3.77007]
[1727411590776,0.03391369,2652.8,2652.4,4.59797]
[1727411591776,0.03391369,2652.8,2652.4,0.8279]
[1727411594280,0.03391369,2652.8,2652.5,0.459819]
[1727411594481,0.03391369,2652.8,2652.4,4.59795]
[1727411594720,0.03391369,2652.8,2652.2,3.77042]
[1727411594920,0.03391369,2652.8,2652.3,3.7703]
[1727411596037,0.03391369,2652.8,2652.6,4.52296]
[1727411596329,0.0386463,2653.2,2652.7,0.07538765]
[1727411596632,0.0386463,2653.2,2653.0,3.76928]
[1727411596834,0.0386463,2653.2,2653.0,4.52238]
[1727411597208,0.03423734,2653.1,2653.0,4.52238]
[1727411597745,0.03423734,2653.1,2653.0,9.39323559]
[1727411598093,0.0386463,2653.2,2653.1,3.76917]
[1727411598289,0.0386463,2653.2,2653.0,8.18976713]
[1727411598495,0.07476762,2653.2,2653.0,8.18976713]
[1727411598694,0.07476762,2653.2,2653.0,4.52238]
[1727411599837,0.07476762,2653.2,2653.0,0.7531]
[1727411600036,0.07476762,2653.2,2652.8,3.76959]
[1727411601232,0.07476762,2653.2,2652.7,4.52282]
[1727411601937,0.91882938,2653.2,2652.7,4.52282]
[1727411602300,4.68787938,2653.2,2652.7,4.52282]
[1727411602929,4.68787938,2653.2,2652.7,0.7531]
[1727411603665,0.91882938,2653.2,2652.8,3.76951]
[1727411603828,0.07476762,2653.2,2652.8,3.76951]
[1727411605864,0.07476762,2653.2,2652.7,4.52274]
[1727411606168,0.07476762,2653.2,2652.7,3.76964]
[1727411606542,0.91883238,2653.2,2652.7,3.76964]
[1727411606737,4.68788238,2653.2,2652.7,3.76964]
[1727411607354,0.91883238,2653.2,2652.7,3.76964]
[1727411608371,4.68786238,2653.2,2652.7,3.76964]
[1727411608929,4.68786238,2653.2,2652.5,4.52305]
[1727411609234,4.60022,2653.0,2652.5,4.52305]
[1727411609540,0.03622498,2652.9,2652.5,4.52305]
[1727411610491,0.03622498,2652.9,2652.6,3.76986]
[1727411610775,0.03622498,2652.9,2652.5,4.52305]
[1727411610776,0.03622498,2652.9,2652.5,8.29298]
[1727411611357,0.03622498,2652.9,2652.5,4.52303]
[1727411611956,0.03622498,2652.9,2652.5,8.29295]
[1727411612379,0.03622498,2652.9,2652.5,4.52302]
[1727411613674,0.03622498,2652.9,2652.6,0.90158695]
[1727411613840,4.6385763,2653.2,2652.7,3.76971]
[1727411614060,0.03625245,2653.1,2652.7,3.76971]
[1727411616153,0.03625245,2653.1,2652.9,3.76935]
[1727411616353,0.03625245,2653.1,2653.0,3.76931]
[1727411616561,0.03625245,2653.1,2653.0,4.67088529]
[1727411616740,0.03625245,2653.1,2653.0,8.33827242]
[1727411616952,0.0386463,2653.2,2653.1,3.76917]
[1727411617146,0.0386463,2653.2,2653.1,6.16825201]
[1727411617784,0.8695463,2654.0,2653.6,3.76846]
[1727411618086,0.0352371,2653.9,2653.6,3.76846]
[1727411618449,0.8695463,2654.0,2653.6,3.76846]
[1727411618657,0.03405114,2653.9,2653.6,3.76846]
[1727411620355,0.03405114,2653.9,2653.5,0.8262]
[1727411620602,0.03405114,2653.9,2653.4,3.7687]
[1727411622408,0.03405114,2653.9,2653.5,3.76858]
[1727411622763,0.03405114,2653.9,2653.4,4.55185281]
[1727411623074,0.03405114,2653.9,2653.4,3.7687]
[1727411623271,0.03405114,2653.9,2653.4,7.53733]
[1727411623454,0.03405114,2653.9,2653.4,8.32048281]
[1727411623657,0.03405114,2653.9,2653.5,3.8438398]
[1727411623901,0.03405114,2653.9,2653.5,4.55163281]
[1727411624597,0.03405114,2653.9,2653.5,4.62699262]
[1727411624814,0.03405114,2653.9,2653.6,0.78315281]
[1727411624994,0.03405114,2653.9,2653.6,4.55161281]
[1727411625297,0.03405114,2653.9,2653.6,6.04104504]
[1727411625470,0.03405114,2653.9,2653.6,6.11640117]
[1727411625675,0.03405114,2653.9,2653.6,6.04104504]
[1727411625898,0.03405114,2653.9,2653.7,0.78315281]
[1727411626507,0.03405114,2653.9,2653.6,2.27258504]
[1727411627060,0.03405114,2653.9,2653.6,6.04094504]
[1727411627285,0.03405114,2653.9,2653.7,0.78315281]
[1727411628477,0.03405114,2653.9,2653.6,6.04094504]
[1727411629085,0.03405114,2653.9,2653.7,5.35565024]
[1727411629286,0.03405114,2653.9,2653.7,1.66269466]
[1727411629599,0.03405114,2653.9,2653.8,3.76818]
[1727411630266,0.03405114,2653.9,2653.8,4.55133281]
[1727411630597,0.0386463,2654.0,2653.9,3.76803]
[1727411630762,0.0386463,2654.0,2653.9,6.55151849]
[1727411630961,0.0386463,2654.0,2653.9,10.21890562]
[1727411631203,0.0386463,2654.0,2653.9,10.14356071]
[1727411631363,0.0386463,2654.0,2653.9,8.9688315]
[1727411631806,0.0386463,2654.0,2653.9,10.14356071]
[1727411632176,0.0386463,2654.0,2653.9,5.30144437]
[1727411632389,0.07258724,2654.0,2653.9,6.08107234]
[1727411632700,0.0386463,2654.0,2653.9,6.08107234]
[1727411633209,0.07258724,2654.0,2653.9,10.57465947]
[1727411633415,0.0386463,2654.0,2653.9,10.96976071]
[1727411636268,0.0386463,2654.0,2653.9,9.7950315]
[1727411636471,0.0386463,2654.0,2653.9,10.57457971]
[1727411637437,0.0386463,2654.0,2653.9,9.7950315]
[1727411638488,0.0386463,2654.0,2653.9,10.57457971]
[1727411638686,0.0386463,2654.0,2653.9,9.7950315]
[1727411642629,0.0386463,2654.0,2653.9,12.7950315]
[1727411651337,0.0386463,2654.0,2653.9,9.12764437]
[1727411651542,0.0386463,2654.0,2653.9,12.7950315]
[1727411656419,0.0386463,2654.0,2653.9,10.8168728]
[1727411660043,0.0386463,2654.0,2653.9,11.59642101]
[1727411662159,0.0386463,2654.0,2653.9,11.99160201]
[1727411662347,0.0008,2654.5,2654.4,3.76732]
[1727411662550,0.0008,2654.5,2654.4,10.52614166]
[1727411662857,0.0008,2654.5,2654.4,10.45082341]
[1727411663056,0.0008,2654.5,2654.4,9.28084843]
[1727411663642,0.0008,2654.5,2654.4,10.45046431]
[1727411663844,0.0008,2654.5,2654.4,11.05363435]
[1727411664356,0.0008,2654.5,2654.4,14.19162738]
[1727411666065,0.0008,2654.5,2654.4,5.54010592]
[1727411666372,0.8125,2654.5,2654.4,3.84264944]
[1727411666524,0.0008,2654.5,2654.4,7.50043759]
[1727411666862,0.0008,2654.5,2654.4,8.62722835]
[1727411667028,0.0008,2654.5,2654.4,8.55189891]
[1727411668257,0.0008,2654.5,2654.4,9.38039891]
[1727411670444,0.0008,2654.5,2654.4,8.55189891]
[1727411672175,0.0008,2654.5,2654.4,9.38039891]
[1727411672377,0.0008,2654.5,2654.4,10.16010192]
[1727411673691,0.827,2654.5,2654.4,5.67381377]
[1727411673848,0.827,2654.5,2654.4,3.76732]